bitfinex-derivatives/quotes_SOLF0:USTF0_20260302
["timestamp","ask_amount","ask_price","bid_price","bid_amount"]
[1772486556816,6.18423571,87.419,87.371,6.48429827]
[1772486557217,10.295,87.407,87.371,6.48429827]
[1772486558814,8.40259328,87.443,87.351,6.48429827]
[1772486558815,3.36148047,87.39,87.351,6.48429827]
[1772486559013,6.18423571,87.391,87.351,6.48429827]
[1772486559415,3.36148047,87.4,87.351,6.48429827]
[1772486559920,9.54571618,87.4,87.351,6.48429827]
[1772486560313,10.296,87.395,87.352,6.48429827]
[1772486568323,17.01847941,87.395,87.352,6.48429827]
[1772486569125,6.72247941,87.394,87.352,6.48429827]
[1772486571228,6.72247941,87.389,87.352,6.48429827]
[1772486572231,17.01947941,87.389,87.352,6.48429827]
[1772486573030,6.72247941,87.4,87.356,6.28964804]
[1772486573230,10.07496638,87.4,87.356,6.28964804]
[1772486573430,6.72247941,87.399,87.356,6.28964804]
[1772486574233,10.296,87.398,87.356,16.59064804]
[1772486574931,6.72247941,87.419,87.361,6.28964804]
[1772486575131,6.72247941,87.419,87.329,20.609]
[1772486575132,6.72247941,87.419,87.371,6.28964804]
[1772486575334,3.35248697,87.43,87.329,20.609]
[1772486575335,6.72247941,87.429,87.381,6.28964804]
[1772486575535,6.72247941,87.426,87.381,6.28964804]
[1772486578334,10.293,87.419,87.381,6.28964804]
[1772486578635,6.72247941,87.418,87.369,6.28964804]
[1772486579237,10.294,87.413,87.369,6.28964804]
[1772486579435,6.72247941,87.418,87.369,6.28964804]
[1772486579733,17.73701553,87.428,87.381,6.28964804]
[1772486579935,3.35248697,87.43,87.381,6.28964804]
[1772486580332,6.72247941,87.428,87.381,6.28964804]
[1772486580638,9.27094323,87.449,87.361,6.28964804]
[1772486580639,6.72247941,87.409,87.361,6.28964804]
[1772486580835,3.35248697,87.42,87.371,6.28964804]
[1772486581536,6.72247941,87.422,87.381,6.28964804]
[1772486581736,11.84750824,87.43,87.381,6.28964804]
[1772486581937,3.35248697,87.43,87.381,6.28964804]
[1772486582133,10.07496638,87.43,87.381,6.28964804]
[1772486582334,6.72247941,87.429,87.381,6.28964804]
[1772486583334,6.72247941,87.429,87.384,6.28964804]
[1772486584535,10.291,87.441,87.387,6.28964804]
[1772486584739,3.35248697,87.44,87.387,6.28964804]
[1772486584934,6.72247941,87.439,87.387,6.28964804]
[1772486585839,6.72247941,87.419,87.37,3.35248697]
[1772486586140,6.72247941,87.399,87.362,6.28964804]
[1772486587138,3.35248697,87.39,87.349,6.28964804]
[1772486588143,3.35248697,87.39,87.34,3.35248697]
[1772486588144,3.35248697,87.39,87.351,6.28964804]
[1772486588844,6.72247941,87.399,87.351,6.28964804]
[1772486589244,6.72247941,87.399,87.353,6.28964804]
[1772486589838,6.72247941,87.399,87.354,16.59064804]
[1772486590443,6.72247941,87.399,87.355,6.28964804]
[1772486591448,6.72247941,87.399,87.357,6.28964804]
[1772486592348,6.72247941,87.399,87.36,6.28964804]
[1772486595349,6.72247941,87.399,87.363,10.3]
[1772486595851,6.72247941,87.397,87.341,6.28964804]
[1772486596251,6.72247941,87.397,87.361,10.3]
[1772486597650,6.72247941,87.397,87.366,6.69135311]
[1772486605960,6.72247941,87.397,87.357,10.301]
[1772486606659,6.72247941,87.397,87.357,16.99235311]
[1772486606859,6.72247941,87.397,87.362,10.3]
[1772486609255,18.79002127,87.408,87.37,6.69135311]
[1772486609451,6.28111369,87.399,87.341,6.69135311]
[1772486610254,3.35248697,87.39,87.34,6.69135311]
[1772486610453,6.28111369,87.389,87.34,6.69135311]
[1772486611361,6.28111369,87.387,87.344,6.69135311]
[1772486612356,6.28111369,87.387,87.346,10.302]
[1772486614360,6.28111369,87.387,87.346,16.99335311]
[1772486615157,6.28111369,87.387,87.351,10.301]
[1772486615854,6.28111369,87.387,87.358,10.301]
[1772486616959,6.28111369,87.399,87.363,6.69135311]
[1772486617762,6.28111369,87.399,87.365,10.3]
[1772486619269,8.45493933,87.407,87.371,6.69135311]
[1772486619467,10.295,87.408,87.371,6.69135311]
[1772486619668,10.295,87.408,87.373,10.299]
[1772486620267,6.28111369,87.411,87.373,6.69135311]
[1772486621269,6.28111369,87.411,87.379,10.298]
[1772486624371,8.45493933,87.421,87.381,6.69135311]
[1772486624674,13.64304446,87.43,87.381,6.69135311]
[1772486624873,13.64304446,87.43,87.393,10.296]
[1772486624874,3.35104446,87.43,87.393,10.296]
[1772486625076,17.70405084,87.447,87.401,6.69135311]
[1772486625277,8.45493933,87.452,87.411,6.69135311]
[1772486625571,3.35104446,87.46,87.411,6.69135311]
[1772486626173,27.99154693,87.47,87.421,6.69135311]
[1772486626372,6.28111369,87.469,87.421,6.69135311]
[1772486626966,3.35104446,87.46,87.421,6.69135311]
[1772486627369,3.35104446,87.46,87.427,10.292]
[1772486627973,10.286,87.484,87.431,6.64022557]
[1772486628168,3.35104446,87.48,87.431,6.64022557]
[1772486628470,10.286,87.484,87.431,6.64022557]
[1772486628471,3.35104446,87.47,87.431,6.64022557]
[1772486629079,6.68379108,87.479,87.433,6.64022557]
[1772486629279,10.285,87.492,87.441,6.64022557]
[1772486629280,3.35104446,87.49,87.441,6.64022557]
[1772486629582,6.68379108,87.489,87.443,6.64022557]
[1772486630281,6.68379108,87.489,87.446,6.64022557]
[1772486630476,3.35104446,87.48,87.446,6.64022557]
[1772486631083,6.68379108,87.489,87.446,6.64022557]
[1772486633882,6.68379108,87.479,87.434,6.64022557]
[1772486634082,3.35104446,87.47,87.434,6.64022557]
[1772486634986,6.68379108,87.479,87.434,6.64022557]
[1772486635183,6.68379108,87.478,87.434,6.64022557]
[1772486635478,6.68379108,87.459,87.422,10.293]
[1772486636378,3.35104446,87.45,87.4,3.35104446]
[1772486636585,3.35104446,87.45,87.401,6.64022557]
[1772486636586,6.68379108,87.449,87.401,6.64022557]
[1772486637382,6.68379108,87.449,87.406,10.295]
[1772486637584,6.68379108,87.449,87.407,6.64022557]
[1772486640177,6.68379108,87.449,87.409,6.64022557]
[1772486640386,3.35104446,87.47,87.421,6.64022557]
[1772486640589,6.68379108,87.477,87.431,6.64022557]
[1772486641292,6.68379108,87.491,87.441,6.64022557]
[1772486641493,3.35104446,87.5,87.451,6.64022557]
[1772486641686,6.68379108,87.502,87.451,6.64022557]
[1772486642186,3.35104446,87.5,87.451,6.64022557]
[1772486643187,3.35104446,87.5,87.459,10.289]
[1772486644989,10.03483554,87.5,87.459,10.289]
[1772486645384,6.68379108,87.499,87.451,16.93022557]
[1772486645589,6.68379108,87.499,87.452,6.64022557]
[1772486645790,6.68379108,87.499,87.46,3.35104446]
[1772486646196,6.68379108,87.499,87.46,9.99127003]
[1772486646395,6.68379108,87.499,87.461,6.64022557]
[1772486647194,6.68379108,87.499,87.462,10.288]
[1772486647394,6.68379108,87.499,87.45,3.35104446]
[1772486647694,6.68379108,87.499,87.453,6.64022557]
[1772486650189,10.284,87.498,87.453,6.64022557]
[1772486650393,6.68379108,87.497,87.453,6.64022557]
[1772486651193,10.284,87.496,87.453,6.64022557]
[1772486651394,6.68379108,87.495,87.453,6.64022557]
[1772486655603,6.68379108,87.491,87.453,6.64022557]
[1772486657307,6.25842042,87.479,87.435,6.25791619]
[1772486658308,6.25842042,87.479,87.438,10.291]
[1772486659416,6.65441513,87.477,87.438,10.291]
[1772486660312,6.65441513,87.477,87.441,6.19507724]
[1772486663013,6.65441513,87.477,87.435,10.291]
[1772486663915,6.65441513,87.477,87.426,10.292]
[1772486663916,3.35104446,87.47,87.426,10.292]
[1772486664124,6.65441513,87.459,87.401,6.19507724]
[1772486664414,6.65441513,87.459,87.41,3.35104446]
[1772486664609,6.65441513,87.459,87.419,6.19507724]
[1772486666413,6.65441513,87.459,87.427,10.292]
[1772486667015,6.65441513,87.459,87.42,10.293]
[1772486667615,6.65441513,87.459,87.419,6.19507724]
[1772486667616,6.65441513,87.459,87.425,10.293]
[1772486668016,6.65441513,87.459,87.407,6.19507724]
[1772486669314,6.65441513,87.456,87.41,10.294]
[1772486669514,6.65441513,87.456,87.411,6.19507724]
[1772486670920,3.35104446,87.45,87.411,6.19507724]
[1772486671921,3.35104446,87.45,87.413,10.294]
[1772486672420,3.35104446,87.45,87.413,16.48907724]
[1772486672622,3.35104446,87.46,87.424,6.19507724]
[1772486674821,3.35104446,87.46,87.411,6.19507724]
[1772486674822,6.65441513,87.459,87.411,6.19507724]
[1772486676425,6.65441513,87.458,87.415,16.48907724]
[1772486676720,6.65441513,87.458,87.416,6.19507724]
[1772486676922,6.65441513,87.458,87.419,6.19507724]
[1772486677521,6.65441513,87.486,87.44,3.35104446]
[1772486677714,6.65441513,87.486,87.441,6.19507724]
[1772486679126,6.65441513,87.486,87.449,16.48507724]
[1772486679325,6.65441513,87.499,87.451,6.19507724]
[1772486679525,6.65441513,87.499,87.461,6.19507724]
[1772486679926,10.283,87.509,87.468,10.288]
[1772486680121,6.65441513,87.509,87.468,10.288]
[1772486681218,6.65441513,87.537,87.496,6.19507724]
[1772486681420,6.65441513,87.529,87.483,6.19507724]
[1772486682227,3.35104446,87.54,87.491,6.19507724]
[1772486682423,6.65441513,87.542,87.491,6.19507724]
[1772486683227,6.65441513,87.542,87.5,10.284]
[1772486684123,8.44492891,87.558,87.512,6.19507724]
[1772486684326,6.65441513,87.569,87.521,6.19507724]
[1772486685225,6.65441513,87.569,87.526,10.281]
[1772486687026,6.65441513,87.569,87.521,6.19507724]
[1772486687326,3.34141447,87.57,87.475,20.574]
[1772486687327,6.65441513,87.559,87.511,6.19507724]
[1772486687727,6.48508174,87.549,87.508,10.283]
[1772486687928,6.48508174,87.549,87.498,6.86278459]
[1772486689325,6.48508174,87.549,87.499,6.86278459]
[1772486689628,9.82649621,87.54,87.499,6.86278459]
[1772486689826,6.48508174,87.54,87.499,6.86278459]
[1772486690226,6.48508174,87.539,87.489,10.285]
[1772486690830,6.48508174,87.539,87.489,17.14778459]
[1772486691021,6.48508174,87.539,87.492,10.285]
[1772486691226,6.48508174,87.539,87.492,17.14778459]
[1772486691730,6.48508174,87.539,87.493,6.86278459]
[1772486692424,6.48508174,87.539,87.495,10.284]
[1772486692630,6.48508174,87.539,87.496,6.86278459]
[1772486693028,6.48508174,87.539,87.498,10.284]
[1772486694430,6.48508174,87.539,87.496,6.86278459]
[1772486696134,6.48508174,87.539,87.489,10.285]
[1772486696434,6.48508174,87.519,87.471,6.86278459]
[1772486697034,3.34141447,87.53,87.487,6.86278459]
[1772486697229,6.48508174,87.534,87.487,6.86278459]
[1772486697730,3.34141447,87.53,87.487,6.86278459]
[1772486697927,9.82649621,87.53,87.487,6.86278459]
[1772486698332,9.82649621,87.53,87.489,10.285]
[1772486698735,6.48508174,87.529,87.489,10.285]
[1772486699234,3.34141447,87.54,87.496,10.284]
[1772486699434,6.48508174,87.539,87.496,10.284]
[1772486700133,6.48508174,87.539,87.505,10.283]
[1772486700438,3.34141447,87.55,87.506,6.86278459]
[1772486700634,6.48508174,87.539,87.493,6.86278459]
[1772486700936,6.48508174,87.539,87.422,21.13134371]
[1772486700937,6.48508174,87.519,87.47,3.34141447]
[1772486701136,6.48508174,87.509,87.468,6.86278459]
[1772486701332,3.34141447,87.51,87.452,6.86278459]
[1772486701333,6.48508174,87.507,87.452,6.86278459]
[1772486703332,16.76808174,87.505,87.464,10.288]
[1772486703733,6.48508174,87.504,87.452,6.86278459]
[1772486703934,6.48508174,87.489,87.438,6.86278459]
[1772486704335,3.34141447,87.48,87.438,6.86278459]
[1772486704533,6.48508174,87.469,87.425,6.86278459]
[1772486705040,6.48508174,87.459,87.418,10.293]
[1772486705942,11.46,87.516,87.397,6.86278459]
[1772486705943,6.48508174,87.449,87.397,6.86278459]
[1772486706134,3.34141447,87.44,87.397,6.86278459]
[1772486706938,6.48508174,87.469,87.411,6.86278459]
[1772486708230,3.34141447,87.45,87.411,6.86278459]
[1772486709136,6.48508174,87.459,87.413,6.86278459]
[1772486709735,6.48508174,87.459,87.417,6.86278459]
[1772486709936,3.34141447,87.47,87.417,6.86278459]
[1772486710542,3.34141447,87.47,87.421,6.86278459]
[1772486710931,6.48508174,87.459,87.406,6.86278459]
[1772486711138,3.34141447,87.45,87.409,10.295]
[1772486712838,3.34141447,87.45,87.409,6.86278459]
[1772486713042,3.34141447,87.46,87.411,6.86278459]
[1772486713543,3.34141447,87.46,87.423,10.293]
[1772486714336,3.34141447,87.46,87.415,10.294]
[1772486714543,3.34141447,87.46,87.411,6.86278459]
[1772486714544,6.48508174,87.471,87.411,6.86278459]
[1772486714744,6.48508174,87.468,87.411,6.86278459]
[1772486714936,6.48508174,87.459,87.382,6.86278459]
[1772486716240,6.48508174,87.445,87.396,10.296]
[1772486718737,6.48508174,87.445,87.406,10.295]
[1772486719848,6.84736857,87.443,87.395,6.76063176]
[1772486720042,6.84736857,87.443,87.379,6.76063176]
[1772486721250,10.292,87.431,87.391,10.297]
[1772486721746,6.84736857,87.43,87.379,6.76063176]
[1772486722345,6.84736857,87.459,87.379,6.76063176]
[1772486723241,10.291,87.436,87.395,10.296]
[1772486723841,10.292,87.43,87.386,10.297]
[1772486724149,6.84736857,87.435,87.394,6.76063176]
[1772486725543,6.84736857,87.433,87.394,6.76063176]
[1772486726541,6.84736857,87.43,87.393,481.21192473]
[1772486726850,6.84736857,87.43,87.368,6.76063176]
[1772486727748,6.84736857,87.412,87.37,10.299]
[1772486729049,6.84736857,87.412,87.376,10.298]
[1772486730342,6.84736857,87.427,87.368,6.76063176]
[1772486730741,6.84736857,87.427,87.382,10.298]
[1772486730942,6.84736857,87.427,87.345,6.76063176]
[1772486731546,6.84736857,87.411,87.36,6.76063176]
[1772486731941,6.84736857,87.411,87.326,6.76063176]
[1772486732140,6.84736857,87.396,87.357,10.301]
[1772486733346,6.84736857,87.41,87.371,6.76063176]
[1772486733653,6.84736857,87.439,87.371,6.76063176]
[1772486735350,10.293,87.426,87.382,10.298]
[1772486735856,6.84736857,87.422,87.375,10.299]
[1772486736753,6.84736857,87.398,87.359,10.3]
[1772486737248,15.81592887,87.42,87.371,6.76063176]
[1772486737450,6.84736857,87.42,87.371,6.76063176]
[1772486737751,17.14136857,87.419,87.371,17.05963176]
[1772486737952,6.84736857,87.418,87.371,17.05963176]
[1772486739354,10.294,87.414,87.371,17.05963176]
[1772486739554,6.84736857,87.413,87.371,17.05963176]
[1772486741148,6.84736857,87.411,87.371,10.299]
[1772486745757,6.84736857,87.409,87.352,6.76063176]
[1772486746657,6.84736857,87.423,87.352,6.76063176]
[1772486747757,6.67909963,87.407,87.365,6.36824433]
[1772486749356,6.67909963,87.407,87.371,10.299]
[1772486749957,6.67909963,87.405,87.364,10.3]
[1772486750353,6.67909963,87.405,87.311,6.36824433]
[1772486750354,6.67909963,87.389,87.311,6.36824433]
[1772486750559,10.299,87.369,87.326,6.36824433]
[1772486750759,6.67909963,87.369,87.295,6.36824433]
[1772486752265,6.67909963,87.368,87.317,10.305]
[1772486752662,6.67909963,87.368,87.314,6.36824433]
[1772486753058,9.19813629,87.388,87.284,6.36824433]
[1772486753059,6.67909963,87.349,87.284,6.36824433]
[1772486754167,6.67909963,87.349,87.291,10.308]
[1772486754958,6.67909963,87.349,87.298,16.67624433]
[1772486755270,6.67909963,87.363,87.299,6.36824433]
[1772486756168,6.67909963,87.363,87.315,6.36824433]
[1772486756765,10.298,87.379,87.338,10.303]
[1772486758867,10.55892512,87.407,87.274,160.392]
[1772486758868,6.67909963,87.401,87.347,6.36824433]
[1772486759670,10.297,87.389,87.348,10.302]
[1772486760370,6.67909963,87.379,87.33,6.36824433]
[1772486760569,6.67909963,87.405,87.33,6.36824433]
[1772486761277,6.67909963,87.405,87.346,6.36824433]
[1772486761670,6.67909963,87.403,87.346,6.36824433]
[1772486762574,6.67909963,87.391,87.346,6.36824433]
[1772486762778,6.67909963,87.409,87.346,6.36824433]
[1772486763070,6.67909963,87.407,87.364,10.3]
[1772486763275,6.67909963,87.407,87.346,6.36824433]
[1772486763875,6.67909963,87.406,87.346,6.36824433]
[1772486764474,17.51522717,87.426,87.346,6.36824433]
[1772486764475,6.67909963,87.397,87.346,6.36824433]
[1772486765576,6.67909963,87.405,87.352,10.301]
[1772486767174,6.67909963,87.405,87.346,6.36824433]
[1772486767379,8.36963864,87.425,87.311,20.613]
[1772486767380,6.67909963,87.389,87.332,6.36824433]
[1772486768269,6.67909963,87.387,87.342,10.302]
[1772486768479,6.67909963,87.387,87.332,6.36824433]
[1772486769374,6.67909963,87.387,87.348,10.302]
[1772486770776,6.67909963,87.42,87.357,6.36824433]
[1772486772378,6.67909963,87.418,87.372,10.299]
[1772486773176,10.294,87.417,87.372,10.299]
[1772486773381,10.294,87.417,87.378,10.298]
[1772486776071,10.294,87.417,87.37,6.36824433]
[1772486776072,6.67909963,87.412,87.37,6.36824433]
[1772486776277,6.67909963,87.412,87.331,6.36824433]
[1772486776474,6.67909963,87.412,87.341,6.36824433]
[1772486776682,3.35316089,87.4,87.351,6.36427304]
[1772486778079,3.35316089,87.4,87.35,3.35316089]
[1772486778080,3.35316089,87.4,87.359,16.92847982]
[1772486779582,3.35316089,87.4,87.36,6.62847982]
[1772486780676,6.54348347,87.389,87.341,6.62847982]
[1772486780979,6.54348347,87.389,87.261,195.35541206]
[1772486780980,3.35316089,87.37,87.328,6.62847982]
[1772486781787,3.35316089,87.37,87.328,16.93247982]
[1772486782491,10.298,87.377,87.328,16.93247982]
[1772486782691,10.298,87.377,87.335,10.303]
[1772486784885,8.48684735,87.389,87.342,6.62847982]
[1772486785086,6.54348347,87.393,87.342,6.62847982]
[1772486786192,16.84048347,87.393,87.348,10.302]
[1772486789695,16.84048347,87.393,87.348,16.93047982]
[1772486789996,10.297,87.391,87.349,6.62847982]
[1772486794788,6.54348347,87.392,87.35,10.302]
[1772486794988,6.54348347,87.392,87.351,6.62847982]
[1772486796196,6.54348347,87.391,87.351,6.62847982]
[1772486796897,6.54348347,87.391,87.352,10.301]
[1772486804601,3.35365693,87.39,87.352,10.301]
[1772486805303,3.35365693,87.36,87.321,6.62847982]
[1772486805803,3.35365693,87.36,87.327,6.62847982]
[1772486806000,6.54348347,87.369,87.327,6.62847982]
[1772486806701,6.54348347,87.369,87.336,10.303]
[1772486808295,16.84248347,87.369,87.329,10.304]
[1772486811605,16.84248347,87.369,87.329,16.6895894]
[1772486811805,6.54348347,87.369,87.33,6.3855894]
[1772486813002,3.35365693,87.39,87.347,6.3855894]
[1772486813307,6.68137559,87.397,87.347,6.3855894]
[1772486813600,6.68137559,87.397,87.357,10.301]
[1772486816401,10.296,87.395,87.347,6.3855894]
[1772486816706,10.296,87.395,87.34,3.35365693]
[1772486816707,6.68137559,87.394,87.35,6.3855894]
[1772486817601,6.68137559,87.389,87.338,6.3855894]
[1772486818398,6.68137559,87.389,87.34,3.35365693]
[1772486818606,6.68137559,87.389,87.341,6.3855894]
[1772486819306,6.68137559,87.386,87.341,6.3855894]
[1772486820301,10.298,87.38,87.341,6.3855894]
[1772486821906,10.298,87.38,87.342,6.3855894]
[1772486822309,8.50028352,87.401,87.361,6.3855894]
[1772486822507,15.18165911,87.419,87.361,6.3855894]
[1772486822706,24.4136843,87.419,87.361,6.3855894]
[1772486822910,8.50028352,87.418,87.371,6.3855894]
[1772486823212,6.68137559,87.419,87.379,16.6835894]
[1772486823412,6.68137559,87.419,87.38,6.3855894]
[1772486823607,9.23202519,87.422,87.38,6.3855894]
[1772486823807,10.293,87.423,87.38,6.3855894]
[1772486823808,18.79328352,87.423,87.38,6.3855894]
[1772486824016,10.293,87.423,87.38,6.3855894]
[1772486824209,6.68137559,87.417,87.382,10.298]
[1772486824404,3.35365693,87.4,87.353,6.3855894]
[1772486825614,3.35365693,87.4,87.325,20.609]
[1772486825615,6.68137559,87.409,87.372,10.299]
[1772486826011,10.294,87.413,87.373,6.3855894]
[1772486826709,18.79428352,87.413,87.373,6.3855894]
[1772486826909,10.294,87.413,87.373,6.3855894]
[1772486827513,6.68137559,87.4,87.355,6.3855894]
[1772486827712,6.68137559,87.399,87.355,6.3855894]
[1772486828514,6.68137559,87.399,87.317,500.08798811]
[1772486828515,3.35365693,87.38,87.331,6.3855894]
[1772486828709,3.35365693,87.37,87.331,6.3855894]
[1772486829817,3.35365693,87.37,87.332,10.304]
[1772486830919,6.68137559,87.378,87.338,16.6885894]
[1772486832223,16.97937559,87.378,87.338,16.6885894]
[1772486833315,3.35365693,87.38,87.341,6.3855894]
[1772486834221,3.35365693,87.38,87.345,10.302]
[1772486835118,10.298,87.379,87.341,6.3855894]
[1772486835622,3.35365693,87.38,87.341,6.3855894]
[1772486835818,3.35365693,87.37,87.341,6.3855894]
[1772486836021,15.18165911,87.388,87.331,6.3855894]
[1772486836219,3.35365693,87.38,87.331,6.3855894]
[1772486837231,10.298,87.379,87.338,16.58692595]
[1772486838331,10.298,87.379,87.338,6.28392595]
[1772486842735,10.299,87.373,87.338,6.28392595]
[1772486843634,3.35365693,87.37,87.338,6.28392595]
[1772486846938,3.35365693,87.38,87.341,6.35857322]
[1772486847142,3.35365693,87.39,87.341,6.35857322]
[1772486847545,6.59762347,87.389,87.341,6.35857322]
[1772486847839,3.35365693,87.39,87.352,6.35857322]
[1772486848045,3.35365693,87.4,87.352,6.35857322]
[1772486848744,13.64965693,87.4,87.358,6.35857322]
[1772486849244,10.296,87.394,87.358,6.35857322]
[1772486849442,3.35365693,87.39,87.358,6.35857322]
[1772486850342,10.297,87.388,87.358,6.35857322]
[1772486851439,10.297,87.388,87.35,10.301]
[1772486851641,3.35365693,87.38,87.346,6.35857322]
[1772486851840,6.59762347,87.379,87.334,6.35857322]
[1772486853349,16.89562347,87.379,87.337,6.35857322]
[1772486854248,16.89562347,87.379,87.339,10.303]
[1772486855043,16.89562347,87.379,87.32,3.35365693]
[1772486855044,9.9512804,87.36,87.321,6.35857322]
[1772486855450,3.35365693,87.36,87.321,6.35857322]
[1772486856247,3.35365693,87.36,87.322,10.305]
[1772486857043,10.301,87.358,87.321,6.35857322]
[1772486858140,10.301,87.352,87.321,6.35857322]
[1772486860645,10.301,87.359,87.321,6.35857322]
[1772486860846,3.35365693,87.37,87.321,6.35857322]
[1772486862346,3.35365693,87.37,87.333,6.35857322]
[1772486862551,17.70668956,87.392,87.333,6.35857322]
[1772486862552,9.9512804,87.38,87.333,6.35857322]
[1772486863348,10.299,87.374,87.338,6.35857322]
[1772486864540,9.95232634,87.38,87.338,6.35857322]
[1772486864746,10.299,87.368,87.338,6.35857322]
[1772486868451,10.299,87.368,87.331,6.18438196]
[1772486871852,10.299,87.368,87.332,16.48838196]
[1772486872149,10.299,87.368,87.333,6.18438196]
[1772486875758,9.75998939,87.36,87.317,478.69492152]
[1772486876058,6.40528652,87.359,87.318,6.18438196]
[1772486876257,6.40528652,87.359,87.3,3.35470287]
[1772486876258,6.40528652,87.349,87.305,6.18438196]
[1772486877251,10.303,87.341,87.305,6.18438196]
[1772486877451,3.35470287,87.34,87.305,6.18438196]
[1772486877757,6.40528652,87.339,87.305,6.18438196]
[1772486878753,10.303,87.335,87.293,6.18438196]
[1772486879750,17.70029913,87.36,87.28,3.35470287]
[1772486879751,6.40528652,87.359,87.321,6.18438196]
[1772486880859,6.40528652,87.375,87.321,6.18438196]
[1772486881156,3.35470287,87.37,87.325,6.18438196]
[1772486881461,6.40528652,87.369,87.325,6.18438196]
[1772486882264,10.3,87.362,87.325,6.18438196]
[1772486882658,6.40528652,87.369,87.327,6.18438196]
[1772486883958,16.70428652,87.369,87.33,6.18438196]
[1772486885058,6.40528652,87.382,87.344,6.18438196]
[1772486886155,10.299,87.375,87.344,6.18438196]
[1772486891062,6.40528652,87.374,87.332,6.18438196]
[1772486891868,6.40528652,87.374,87.335,6.18438196]
[1772486892062,6.40528652,87.399,87.35,3.35470287]
[1772486892462,6.40528652,87.39,87.352,10.301]
[1772486893968,10.297,87.388,87.347,6.18438196]
[1772486897276,10.297,87.388,87.35,6.51976305]
[1772486899069,6.40528652,87.39,87.353,10.301]
[1772486899272,8.48143666,87.398,87.354,6.53994141]
[1772486899472,6.26811228,87.402,87.354,6.53994141]
[1772486900272,6.26811228,87.402,87.36,6.53994141]
[1772486901279,6.26811228,87.402,87.363,10.3]
[1772486901476,10.295,87.408,87.364,6.53994141]
[1772486901674,6.26811228,87.415,87.331,20.608]
[1772486901675,8.48143666,87.414,87.371,6.53994141]
[1772486901874,6.26811228,87.415,87.371,6.53994141]
[1772486902377,10.294,87.413,87.373,6.53994141]
[1772486902972,16.56211228,87.413,87.373,6.53994141]
[1772486903981,6.26811228,87.412,87.373,6.53994141]
[1772486905183,10.295,87.41,87.373,6.53994141]
[1772486905475,6.26811228,87.409,87.373,6.53994141]
[1772486906274,10.295,87.405,87.373,6.53994141]
[1772486908880,6.26811228,87.409,87.373,6.53994141]
[1772486911084,10.294,87.413,87.36,3.35470287]
[1772486911085,10.294,87.413,87.376,6.53994141]
[1772486911284,6.26811228,87.419,87.376,6.53994141]
[1772486912279,6.26811228,87.419,87.378,6.53994141]
[1772486913181,6.26811228,87.419,87.383,6.53994141]
[1772486913374,8.46194426,87.428,87.383,6.53994141]
[1772486913577,351.11514816,87.429,87.386,6.53994141]
[1772486914583,357.38326044,87.429,87.386,6.53994141]
[1772486915188,357.38326044,87.429,87.389,10.297]
[1772486916183,6.26811228,87.426,87.386,6.53994141]
[1772486916384,3.35470287,87.42,87.375,6.53994141]
[1772486916584,6.26811228,87.419,87.375,6.53994141]
[1772486917277,16.56211228,87.418,87.375,16.83894141]
[1772486918283,16.56211228,87.418,87.376,6.53994141]
[1772486918488,6.26811228,87.418,87.379,6.53994141]
[1772486918690,340.82314816,87.429,87.379,6.53994141]
[1772486919088,347.09126044,87.429,87.379,6.53994141]
[1772486919390,6.26811228,87.439,87.398,16.83594141]
[1772486920190,16.55911228,87.439,87.398,16.83594141]
[1772486920990,6.26811228,87.438,87.398,16.83594141]
[1772486922482,3.35470287,87.43,87.398,6.53994141]
[1772486924190,13.64670287,87.43,87.398,6.53994141]
[1772486924488,19.91481515,87.43,87.398,6.53994141]
[1772486924694,6.26811228,87.429,87.39,10.297]
[1772486927592,6.26811228,87.429,87.39,16.9154038]
[1772486927895,13.64263308,87.43,87.393,6.6184038]
[1772486928096,3.35063308,87.43,87.393,6.6184038]
[1772486928495,10.291,87.438,87.4,10.296]
[1772486928995,3.35063308,87.43,87.4,10.296]
[1772486929396,6.43323978,87.429,87.393,6.6184038]
[1772486930292,16.72523978,87.429,87.393,6.6184038]
[1772486934796,6.43323978,87.428,87.393,6.6184038]
[1772486935198,3.35063308,87.41,87.381,6.6184038]
[1772486935496,3.35063308,87.43,87.381,6.6184038]
[1772486937199,13.64263308,87.43,87.39,10.297]
[1772486937396,13.64263308,87.43,87.391,6.6184038]
[1772486938403,10.291,87.436,87.393,6.6184038]
[1772486938598,8.38805436,87.456,87.393,6.6184038]
[1772486938599,6.43323978,87.449,87.393,6.6184038]
[1772486939999,6.43323978,87.449,87.408,6.6184038]
[1772486940193,3.35063308,87.46,87.408,6.6184038]
[1772486940597,10.289,87.458,87.417,10.294]
[1772486940803,3.35063308,87.45,87.417,16.9124038]
[1772486942302,3.35063308,87.44,87.401,6.6184038]